fUSD/lending_fUSD_20241003
["ID","MTS","AMOUNT","RATE_DAILY","PERIOD"]
[339736690,1727919039011,-602.70900663,0.00011929,2]
[339736691,1727919039020,-155.07,0.0001195,2]
[339736692,1727919039030,-797.04,0.0001195,2]
[339736693,1727919039039,-344.43,0.00012033,2]
[339736694,1727919039049,-2367.77080211,0.00012071,2]
[339736695,1727919039058,-10000.0,0.0001216,2]
[339736697,1727919039067,-602.70900663,0.00012186,2]
[339736698,1727919039076,-2367.77080211,0.00012216,2]
[339736699,1727919039086,-150.53,0.0001226,2]
[339736700,1727919039095,-7416.63,0.00012329,2]
[339736701,1727919039105,-2367.77080211,0.00012362,2]
[339736702,1727919039114,-602.70900663,0.00012443,2]
[339736703,1727919039123,-167.74,0.00012445,2]
[339736704,1727919039132,-2367.77080211,0.00012508,2]
[339736705,1727919039141,-237.47,0.00012597,2]
[339736706,1727919039151,-234.87663981,0.00012644,2]
[339736707,1727919039160,-2367.77080211,0.00012654,2]
[339736708,1727919039173,-5916.8581,0.00012673,2]
[339736709,1727919039182,-1000.0,0.00012695,2]
[339736710,1727919039191,-7048.5904,0.00012697,2]
[339736711,1727919039201,-3307.43108515,0.00012697,2]
[339736712,1727919039211,-2500.0,0.000127,2]
[339736713,1727919039219,-40398.724,0.000127,2]
[339736714,1727919039229,-22258.4298,0.000127,2]
[339736715,1727919039239,-500.0,0.000127,2]
[339736716,1727919039249,-9142.327569,0.000127,2]
[339736717,1727919039258,-1000.0,0.000127,2]
[339736718,1727919039267,-2297.72554978,0.000127,2]
[339736719,1727919039276,-3413.4275,0.000127,2]
[339736720,1727919039286,-740.0578,0.000127,2]
[339736721,1727919039295,-803.0551,0.000127,2]
[339736722,1727919039305,-1290.0691,0.000127,2]
[339736723,1727919039314,-156.10988812,0.000127,2]
[339736724,1727919039323,-1371.0269,0.000127,2]
[339736725,1727919039332,-602.70900663,0.000127,2]
[339736726,1727919039341,-8974.1060783,0.000127,2]
[339736727,1727919039351,-348.7076,0.00012736,2]
[339736728,1727919039360,-8974.10607828,0.0001275,2]
[339736729,1727919039369,-159.41703955,0.00012773,2]
[339736730,1727919039379,-160.55875964,0.00012773,2]
[339736731,1727919039389,-201.42260133,0.00012773,2]
[339736732,1727919039398,-639.37519272,0.00012773,2]
[339736733,1727919039407,-500.0,0.00012773,2]
[339736734,1727919039417,-582.21884413,0.00012779,2]
[339736735,1727919039431,-183.52475443,0.00012779,2]
[339736736,1727919039440,-1033833.08760314,0.0001278,2]
[339736737,1727919039449,-234.87663981,0.0001279,2]
[339736738,1727919039458,-234.87663981,0.0001279,2]
[339736739,1727919039468,-411.6429207,0.00012795,2]
[339736740,1727919039477,-331.47984999,0.00012795,2]
[339736741,1727919039486,-2255.447221,0.00012795,2]
[339736742,1727919039496,-1107.0227853,0.00012795,2]
[339736743,1727919039505,-12993.2661363,0.00012795,2]
[339736744,1727919039515,-1000.0,0.00012796,2]
[339736745,1727919039525,-26459.4486812,0.00012797,2]
[339736746,1727919039534,-500.93923767,0.00012799,2]
[339736747,1727919039544,-984.11,0.00012799,2]
[339736748,1727919039553,-258.55976678,0.00012799,2]
[339736749,1727919039563,-664.537,0.000128,2]
[339736750,1727919039573,-1905.0,0.000128,2]
[339736751,1727919039582,-3350.643,0.000128,2]
[339736752,1727919039592,-807.0,0.000128,2]
[339736753,1727919039601,-1895.0,0.000128,2]
[339736754,1727919039612,-150.89,0.000128,2]
[339736755,1727919039621,-5951.336,0.000128,2]
[339736756,1727919039630,-1267.879,0.000128,2]
[339736757,1727919039640,-626.895,0.000128,2]
[339736758,1727919039649,-1299.697,0.000128,2]
[339736759,1727919039659,-449.236,0.000128,2]
[339736760,1727919039670,-192717.56976999,0.000128,2]
[339736762,1727919040247,-1364.83123837,0.000128,2]
[339736763,1727919040286,-2780.2509883,0.000128,2]
[339736764,1727919040297,-4461.84790807,0.000128,2]
[339736765,1727919040309,-5533.35431226,0.000128,2]
[339736766,1727919040320,-1051.74850456,0.000128,2]
[339736767,1727919040332,-279.36,0.000128,2]
[339736768,1727919040344,-27480.72739471,0.000128,2]
[339736769,1727919040356,-4309.98259551,0.000128,2]
[339736770,1727919040390,-4392.91305409,0.000128,2]
[339736771,1727919040401,-2939.9999999,0.000128,2]
[339736772,1727919040412,-264.24,0.000128,2]
[339736773,1727919040428,-2085.36933484,0.000128,2]
[339736774,1727919040439,-2316.99825,0.000128,2]
[339736775,1727919040451,-1078.30371341,0.000128,2]
[339736776,1727919040462,-544.91633961,0.000128,2]
[339736777,1727919040474,-540.65357155,0.000128,2]
[339736778,1727919040487,-1698.02186945,0.000128,2]
[339736779,1727919040498,-22240.98402541,0.000128,2]
[339736780,1727919040544,-31245.35164621,0.000128,2]
[339736781,1727919040556,-1267.92292628,0.000128,2]
[339736782,1727919040568,-464.27999997,0.000128,2]
[339736783,1727919040579,-47856.0,0.000128,2]
[339736784,1727919040590,-16519.58473562,0.000128,2]
[339736802,1727919041081,-634.86779673,0.0001216,2]
[339736803,1727919041091,-1151.067,0.000128,2]
[339736804,1727919041101,-6195.67201125,0.000128,2]
[339736805,1727919041140,-1818.9,0.000128,2]
[339736806,1727919041152,-364.81777504,0.000128,2]
[339736807,1727919041164,-1676.5086068,0.000128,2]
[339736808,1727919041179,-1129.10829927,0.000128,2]
[339736809,1727919041190,-1956.17264041,0.000128,2]
[339736810,1727919041201,-12988.17636382,0.000128,2]
[339736811,1727919041231,-1478742.02628046,0.000128,2]
[339736827,1727919043550,-250.06913573,0.000128,2]
[339736828,1727919043561,-5198.96351615,0.000128,2]
[339736830,1727919043907,-8091.39234812,0.000128,2]
[339736831,1727919043917,-236683.20527307,0.000128,2]
[339736836,1727919046952,-179.56498073,0.000127,2]
[339736837,1727919046961,-150.695,0.000128,2]
[339736838,1727919046971,-302.19454605,0.000128,2]
[339737127,1727919331056,348.48,9.868e-05,2]
[339737238,1727919480264,-250.0,0.00011,2]
[339737267,1727919509517,-250.0,0.000112,2]
[339737268,1727919509538,-250.0,0.000112,2]
[339737326,1727919570569,250.0,0.000112,2]
[339737476,1727919745349,3200.0,0.00011,2]
[339737541,1727919829493,175.39,0.00010959,2]
[339737610,1727919904055,348.44,9.845e-05,2]
[339737922,1727920237749,-250.0,0.00011714,2]
[339737923,1727920237758,-250.0,0.00011742,2]
[339737924,1727920237768,-339.1,0.00011742,2]
[339737925,1727920237777,-1000.0,0.00011773,2]
[339737926,1727920237786,-155.07,0.00011773,2]
[339737927,1727920237796,-152.83,0.00011824,2]
[339737928,1727920237805,-1655.8444224,0.00012,2]
[339737929,1727920237815,-4086.99583389,0.00012,2]
[339737930,1727920237826,-913.00416611,0.00012,2]
[339737931,1727920237836,-348.44,0.00012109,2]
[339737932,1727920237845,-800.89098881,0.00012172,2]
[339737933,1727920237854,-1335.0,0.000124,2]
[339737934,1727920237863,-611.06106508,0.000124,3]
[339737935,1727920237920,-10630.93893492,0.000124,3]
[339737936,1727920237930,-496.46,0.0001254,4]
[339737937,1727920237939,-1244.68126709,0.00012544,2]
[339737938,1727920237948,-400.0,0.000126,4]
[339737939,1727920237957,-163.705654,0.000126,3]
[339737940,1727920237966,-357.43596918,0.00012608,2]
[339737941,1727920237976,-8489.23225135,0.0001268,2]
[339737942,1727920237985,-8879.82066939,0.0001268,2]
[339737943,1727920237994,-500.0,0.00012698,2]
[339737944,1727920238003,-173.00882092,0.000127,2]
[339737945,1727920238013,-214.2143,0.000127,2]
[339737946,1727920238022,-482.5514,0.000127,2]
[339737947,1727920238031,-193.417,0.000127,2]
[339737948,1727920238041,-256.49905218,0.000127,2]
[339737949,1727920238050,-725.0021,0.000127,2]
[339737950,1727920238059,-2500.0,0.000127,2]
[339737951,1727920238069,-179.56498072,0.000127,2]
[339737952,1727920238078,-256.49905217,0.00012711,2]
[339737953,1727920238088,-256.49905217,0.00012722,2]
[339737955,1727920238097,-256.49905217,0.00012733,2]
[339737957,1727920238107,-256.49905217,0.00012744,2]
[339737959,1727920238116,-256.49905217,0.00012756,2]
[339737961,1727920238126,-256.49905217,0.00012767,2]
[339737963,1727920238139,-159.08089818,0.00012773,2]
[339737965,1727920238148,-161.47195701,0.00012773,2]
[339737967,1727920238158,-256.49905217,0.00012778,2]
[339737969,1727920238167,-256.49905217,0.00012789,2]
[339737971,1727920238178,-219.787,0.00012789,2]
[339737973,1727920238187,-1046.57,0.00012789,2]
[339737975,1727920238197,-155.0,0.0001279,2]
[339737977,1727920238207,-45784.97229474,0.00012794,2]
[339737995,1727920239647,-3265.7901458,0.00012794,2]
[339737997,1727920239659,-837.74750378,0.00012794,2]
[339737998,1727920239670,-4285.81638443,0.00012794,2]
[339737999,1727920239759,-265278.36917361,0.00012794,2]
[339738000,1727920239769,-19896.9909654,0.00012795,2]
[339738001,1727920239778,-2660.3197544,0.00012795,2]
[339738002,1727920239787,-1064.5590273,0.00012795,2]
[339738003,1727920239797,-14967.45849366,0.00012797,2]
[339738004,1727920239806,-258.55976677,0.00012799,2]
[339738005,1727920239817,-409.20529378,0.00012799,2]
[339738006,1727920239826,-165.27056348,0.00012799,2]
[339738007,1727920239835,-820.169,0.000128,2]
[339738008,1727920239844,-935.87,0.000128,2]
[339738009,1727920239854,-150.0,0.000128,2]
[339738010,1727920239863,-563.48,0.000128,2]
[339738011,1727920239871,-150.0,0.000128,2]
[339738012,1727920239881,-5080665.33011052,0.000128,2]
[339738013,1727920239890,-1000.0,0.000128,2]
[339738014,1727920239900,-1000.0,0.000128,2]
[339738015,1727920239910,-1000.0,0.000128,2]
[339738016,1727920239920,-1000.0,0.000128,2]
[339738017,1727920239930,-1000.0,0.000128,2]
[339738018,1727920239939,-1000.0,0.000128,2]
[339738019,1727920239948,-1000.0,0.000128,2]
[339738020,1727920239957,-1000.0,0.000128,2]
[339738021,1727920239966,-1000.0,0.000128,2]
[339738022,1727920239975,-1000.0,0.000128,2]
[339738023,1727920239984,-1000.0,0.000128,2]
[339738025,1727920239994,-1000.0,0.000128,2]
[339738027,1727920240004,-1000.0,0.000128,2]
[339738029,1727920240013,-1000.0,0.000128,2]
[339738031,1727920240023,-1000.0,0.000128,2]
[339738033,1727920240031,-1000.0,0.000128,2]
[339738034,1727920240041,-1000.0,0.000128,2]
[339738035,1727920240050,-1000.0,0.000128,2]
[339738036,1727920240058,-1000.0,0.000128,2]
[339738037,1727920240069,-1000.0,0.000128,2]
[339738038,1727920240077,-1000.0,0.000128,2]
[339738039,1727920240086,-1000.0,0.000128,2]
[339738040,1727920240096,-1000.0,0.000128,2]
[339738041,1727920240105,-1000.0,0.000128,2]
[339738042,1727920240114,-1000.0,0.000128,2]
[339738043,1727920240122,-693.43257993,0.000128,2]
[339738044,1727920240134,-1944729.56009834,0.000128,2]
[339738045,1727920240146,-359.58943198,0.000128,2]
[339738046,1727920240158,-643.23488832,0.000128,2]
[339738047,1727920240170,-64097.81684561,0.000128,2]
[339738048,1727920240179,-24796.87,0.000128,2]
[339738049,1727920240188,-2836.17033606,0.000128,2]
[339738050,1727920240197,-508.0,0.000128,2]
[339738051,1727920240207,-65771.10236371,0.000128,2]
[339738052,1727920240218,-1244.6844767,0.000128,2]
[339738053,1727920240229,-11438.56134798,0.000128,2]
[339738054,1727920240241,-587.72819476,0.000128,2]
[339738055,1727920240252,-638533.47361685,0.000128,2]
[339738056,1727920240261,-10003.31730347,0.000128,2]
[339738057,1727920240271,-151.0,0.000128,2]
[339738058,1727920240280,-151.0,0.000128,2]
[339738059,1727920240289,-151.0,0.000128,2]
[339738060,1727920240299,-151.0,0.000128,2]
[339738061,1727920240308,-151.403883,0.000128,2]
[339738062,1727920240320,-160.103924,0.000128,2]
[339738063,1727920240329,-298.395,0.000128,2]
[339738064,1727920240338,-298.395,0.000128,2]
[339738065,1727920240348,-298.395,0.000128,2]
[339738066,1727920240358,-298.395,0.000128,2]
[339738067,1727920240368,-1000.0,0.000128,2]
[339738068,1727920240379,-1000.0,0.000128,2]
[339738069,1727920240389,-1000.0,0.000128,2]
[339738070,1727920240399,-1000.0,0.000128,2]
[339738071,1727920240410,-1000.0,0.000128,2]
[339738072,1727920240420,-1000.0,0.000128,2]
[339738073,1727920240431,-1000.0,0.000128,2]
[339738074,1727920240441,-1000.0,0.000128,2]
[339738075,1727920240451,-1000.0,0.000128,2]
[339738076,1727920240461,-1000.0,0.000128,2]
[339738077,1727920240470,-1000.0,0.000128,2]
[339738078,1727920240479,-1000.0,0.000128,2]
[339738079,1727920240488,-1000.0,0.000128,2]
[339738080,1727920240498,-1000.0,0.000128,2]
[339738081,1727920240507,-1000.0,0.000128,2]
[339738082,1727920240516,-1000.0,0.000128,2]
[339738083,1727920240525,-1000.0,0.000128,2]
[339738084,1727920240534,-1000.0,0.000128,2]
[339738085,1727920240544,-1000.0,0.000128,2]
[339738086,1727920240553,-1000.0,0.000128,2]
[339738087,1727920240565,-200.0,0.000128,2]
[339738088,1727920240574,-319.25527,0.000128,2]
[339738089,1727920240584,-1014.26,0.000128,2]
[339738090,1727920240593,-256.49905217,0.000128,2]
[339738091,1727920240602,-177.36428445,0.000128,2]
[339738092,1727920240610,-1000.0,0.000128,2]
[339738093,1727920240619,-227.0,0.000128,2]
[339738094,1727920240629,-796.2015,0.000128,2]
[339738095,1727920240638,-796.2015,0.000128,2]
[339738096,1727920240647,-3525.83,0.000128,5]
[339738097,1727920240656,-151.0,0.000128,2]
[339738098,1727920240665,-300.6,0.000128,2]
[339738099,1727920240674,-151.0,0.000128,2]
[339738100,1727920240683,-151.0,0.000128,2]
[339738101,1727920240693,-363.0,0.000128,2]
[339738102,1727920240702,-151.0,0.000128,2]
[339738103,1727920240711,-151.0,0.000128,2]
[339738104,1727920240721,-159.01352743,0.000128,2]
[339738105,1727920240730,-151.0,0.000128,2]
[339738106,1727920240740,-500.0,0.000128,2]
[339738107,1727920240749,-150.0,0.000128,2]
[339738108,1727920240759,-201.77224638,0.000128,2]
[339738109,1727920240768,-151.0,0.000128,2]
[339738110,1727920240777,-159.995578,0.000128,2]
[339738111,1727920240786,-159.995578,0.000128,2]
[339738112,1727920240795,-179.56498072,0.000128,2]
[339738113,1727920240805,-11513.0,0.000128,5]
[339738114,1727920240819,-452.208635,0.000128,2]
[339738115,1727920240828,-600.0,0.000128,2]
[339738116,1727920240838,-1091.9789278,0.00012804,2]
[339738117,1727920240847,-799.0,0.00012812,2]
[339738118,1727920240856,-267.202221,0.00012815,2]
[339738119,1727920240866,-615.93446882,0.00012827,2]
[339738120,1727920240876,-150.60340026,0.00012827,2]
[339738121,1727920240885,-18238.6983681,0.00012843,2]
[339738122,1727920240895,-2940.4666148,0.00012843,2]
[339738123,1727920240904,-1206.9705441,0.00012843,2]
[339738124,1727920240913,-1176.6631715,0.00012843,2]
[339738125,1727920240922,-16580.4057709,0.00012852,2]
[339738126,1727920240931,-3220.6134753,0.00012852,2]
[339738127,1727920240941,-1321.9621604,0.00012852,2]
[339738128,1727920240950,-1436.9537766,0.00012852,2]
[339738129,1727920240958,-1288.7673157,0.00012852,2]
[339738130,1727920240968,-1400.8714598,0.00012852,2]
[339738131,1727920240978,-14922.1131736,0.00012861,2]
[339738132,1727920240987,-13263.8205764,0.00012861,2]
[339738133,1727920240996,-11605.5279791,0.00012861,2]
[339738134,1727920241005,-3500.7603357,0.00012861,2]
[339738135,1727920241014,-3780.9071962,0.00012861,2]
[339738136,1727920241023,-4061.0540566,0.00012861,2]
[339738137,1727920241032,-1551.9453929,0.00012861,2]
[339738138,1727920241042,-1666.9370091,0.00012861,2]
[339738139,1727920241051,-1512.975604,0.00012861,2]
[339738140,1727920241062,-1625.0797482,0.00012861,2]
[339738141,1727920241071,-1101.01096784,0.0001287,2]
[339738142,1727920241080,-86157.54131544,0.0001287,2]
[339738143,1727920241089,-428.0,0.0001287,2]
[339738144,1727920241099,-151.0,0.0001287,2]
[339738145,1727920241108,-151.0,0.0001287,2]
[339738146,1727920241118,-151.0,0.0001287,2]
[339738147,1727920241127,-151.0,0.0001287,2]
[339738148,1727920241140,-151.0,0.0001287,2]
[339738149,1727920241149,-151.0,0.0001287,2]
[339738150,1727920241159,-151.0,0.0001287,2]
[339738151,1727920241168,-151.0,0.0001287,2]
[339738152,1727920241178,-151.0,0.0001287,2]
[339738153,1727920241187,-184.9795,0.0001287,2]
[339738154,1727920241196,-151.0,0.0001287,2]
[339738155,1727920241206,-151.0,0.0001287,2]
[339738156,1727920241216,-151.0,0.0001287,2]
[339738157,1727920241225,-500.0,0.00012873,2]
[339738158,1727920241235,-303.96386647,0.00012877,2]
[339738159,1727920241244,-300.0,0.00012877,2]
[339738160,1727920241253,-300.0,0.00012877,2]
[339738161,1727920241263,-300.0,0.00012877,2]
[339738162,1727920241272,-300.0,0.00012877,2]
[339738163,1727920241281,-300.0,0.00012877,2]
[339738164,1727920241291,-300.0,0.00012877,2]
[339738165,1727920241300,-300.0,0.00012877,2]
[339738166,1727920241309,-300.0,0.00012877,2]
[339738167,1727920241320,-300.0,0.00012877,2]
[339738168,1727920241329,-300.0,0.00012877,2]
[339738169,1727920241338,-300.0,0.00012877,2]
[339738170,1727920241348,-300.0,0.00012877,2]
[339738171,1727920241357,-179.99,0.00012893,2]
[339738172,1727920241366,-300.0,0.00012897,2]
[339738173,1727920241375,-300.0,0.00012897,2]
[339738174,1727920241384,-300.0,0.00012898,2]
[339738175,1727920241393,-300.0,0.00012898,2]
[339738176,1727920241403,-300.0,0.00012898,2]
[339738177,1727920241412,-300.0,0.00012898,2]
[339738178,1727920241422,-300.0,0.00012898,2]
[339738179,1727920241431,-300.0,0.00012898,2]
[339738180,1727920241441,-300.0,0.00012898,2]
[339738181,1727920241450,-300.0,0.00012898,2]
[339738182,1727920241459,-300.0,0.00012898,2]
[339738183,1727920241468,-300.0,0.00012898,2]
[339738184,1727920241477,-300.0,0.00012898,2]
[339738185,1727920241487,-300.0,0.00012898,2]
[339738186,1727920241496,-300.0,0.00012898,2]
[339738187,1727920241505,-300.0,0.00012898,2]
[339738188,1727920241513,-300.0,0.00012898,2]
[339738189,1727920241523,-300.0,0.00012898,2]
[339738190,1727920241531,-300.0,0.00012898,2]
[339738191,1727920241540,-300.0,0.00012898,2]
[339738192,1727920241549,-300.0,0.00012898,2]
[339738193,1727920241559,-302.80819133,0.00012898,2]
[339738194,1727920241569,-300.0,0.00012898,2]
[339738195,1727920241579,-300.0,0.00012898,2]
[339738196,1727920241589,-300.0,0.00012898,2]
[339738197,1727920241598,-300.0,0.00012899,2]
[339738198,1727920241607,-300.0,0.00012899,2]
[339738199,1727920241617,-300.0,0.00012899,2]
[339738200,1727920241626,-300.0,0.00012899,2]
[339738201,1727920241636,-300.0,0.00012899,2]
[339738202,1727920241647,-300.0,0.00012899,2]
[339738203,1727920241658,-300.0,0.00012899,2]
[339738204,1727920241667,-300.0,0.00012899,2]
[339738205,1727920241676,-300.0,0.00012899,2]
[339738206,1727920241685,-2357.75539609,0.00012899,2]
[339738207,1727920241695,-151.0,0.00012899,2]
[339738208,1727920241704,-444.7226,0.00012899,2]
[339738209,1727920241713,-151.0,0.00012899,2]
[339738210,1727920241722,-444.7226,0.00012899,2]
[339738211,1727920241731,-151.0,0.00012899,2]
[339738212,1727920241740,-151.0,0.00012899,2]
[339738213,1727920241749,-152.47439,0.00012899,2]
[339738214,1727920241759,-151.0,0.00012899,2]
[339738215,1727920241768,-151.0,0.00012899,2]
[339738216,1727920241777,-151.880335,0.00012899,2]
[339738217,1727920241786,-151.631175,0.00012899,2]
[339738218,1727920241795,-151.0,0.00012899,2]
[339738219,1727920241804,-151.0,0.00012899,2]
[339738220,1727920241815,-151.0,0.00012899,2]
[339738221,1727920241824,-151.0,0.00012899,2]
[339738222,1727920241833,-151.0,0.00012899,2]
[339738223,1727920241843,-151.0,0.00012899,2]
[339738224,1727920241852,-151.0,0.00012899,2]
[339738225,1727920241861,-219.188926,0.00012899,2]
[339738226,1727920241870,-258.845048,0.00012899,2]
[339738227,1727920241880,-258.845048,0.00012899,2]
[339738228,1727920241889,-241.256368,0.00012899,2]
[339738229,1727920241898,-241.256368,0.00012899,2]
[339738230,1727920241907,-151.0,0.00012899,2]
[339738231,1727920241917,-151.0,0.00012899,2]
[339738232,1727920241926,-151.0,0.00012899,2]
[339738233,1727920241935,-151.0,0.00012899,2]
[339738234,1727920241944,-151.0,0.00012899,2]
[339738235,1727920241953,-151.0,0.00012899,2]
[339738236,1727920241963,-151.0,0.00012899,2]
[339738237,1727920241972,-151.0,0.00012899,2]
[339738238,1727920241982,-151.0,0.00012899,2]
[339738239,1727920241991,-151.0,0.00012899,2]
[339738240,1727920242000,-151.0,0.00012899,2]
[339738241,1727920242010,-151.0,0.00012899,2]
[339738242,1727920242019,-293.565332,0.00012899,2]
[339738243,1727920242028,-151.692069,0.00012899,2]
[339738244,1727920242038,-151.0,0.00012899,2]
[339738245,1727920242047,-151.0,0.00012899,2]
[339738246,1727920242057,-151.0,0.00012899,2]
[339738247,1727920242067,-151.35567,0.00012899,2]
[339738248,1727920242076,-151.0,0.00012899,2]
[339738249,1727920242086,-186.134578,0.00012899,2]
[339738250,1727920242095,-151.0,0.00012899,2]
[339738251,1727920242104,-186.134578,0.00012899,2]
[339738252,1727920242114,-152.209879,0.00012899,2]
[339738253,1727920242124,-151.0,0.00012899,2]
[339738254,1727920242136,-151.0,0.00012899,2]
[339738255,1727920242145,-205.576621,0.00012899,2]
[339738256,1727920242155,-205.576621,0.00012899,2]
[339738257,1727920242164,-151.0,0.00012899,2]
[339738258,1727920242173,-151.0,0.00012899,2]
[339738259,1727920242182,-151.0,0.00012899,2]
[339738260,1727920242191,-151.696294,0.00012899,2]
[339738261,1727920242201,-151.0,0.00012899,2]
[339738262,1727920242210,-290.373468,0.00012899,2]
[339738263,1727920242220,-151.0,0.00012899,2]
[339738264,1727920242229,-151.0,0.00012899,2]
[339738265,1727920242239,-151.0,0.00012899,2]
[339738266,1727920242248,-151.0,0.00012899,2]
[339738267,1727920242257,-204.23188,0.00012899,2]
[339738268,1727920242267,-204.23188,0.00012899,2]
[339738269,1727920242276,-151.0,0.00012899,2]
[339738270,1727920242285,-151.0,0.00012899,2]
[339738271,1727920242294,-151.0,0.00012899,2]
[339738272,1727920242303,-151.0,0.00012899,2]
[339738273,1727920242313,-151.0,0.00012899,2]
[339738274,1727920242329,-151.0,0.00012899,2]
[339738276,1727920242338,-151.0,0.00012899,2]
[339738277,1727920242349,-151.0,0.00012899,2]
[339738278,1727920242359,-508.411665,0.00012899,2]
[339738279,1727920242368,-508.411665,0.00012899,2]
[339738280,1727920242377,-151.0,0.00012899,2]
[339738281,1727920242387,-162.812051,0.00012899,2]
[339738282,1727920242396,-251.572361,0.00012899,2]
[339738283,1727920242405,-162.812051,0.00012899,2]
[339738284,1727920242414,-151.0,0.00012899,2]
[339738286,1727920242423,-882.0714,0.00012899,2]
[339738287,1727920242432,-882.0714,0.00012899,2]
[339738288,1727920242441,-151.0,0.00012899,2]
[339738289,1727920242450,-217.029087,0.00012899,2]
[339738290,1727920242460,-217.029087,0.00012899,2]
[339738291,1727920242469,-151.0,0.00012899,2]
[339738292,1727920242478,-1537.599537,0.00012899,2]
[339738293,1727920242488,-151.0,0.00012899,2]
[339738294,1727920242497,-1537.599537,0.00012899,2]
[339738295,1727920242507,-151.0,0.00012899,2]
[339738296,1727920242516,-151.0,0.00012899,2]
[339738297,1727920242526,-151.0,0.00012899,2]
[339738299,1727920242536,-151.0,0.00012899,2]
[339738301,1727920242545,-151.0,0.00012899,2]
[339738302,1727920242554,-151.0,0.00012899,2]
[339738303,1727920242563,-151.0,0.00012899,2]
[339738304,1727920242576,-264.372946,0.00012899,2]
[339738305,1727920242585,-151.470998,0.00012899,2]
[339738306,1727920242594,-159.995578,0.00012899,2]
[339738307,1727920242603,-159.995578,0.00012899,2]
[339738308,1727920242612,-151.0,0.00012899,2]
[339738309,1727920242621,-151.0,0.00012899,2]
[339738311,1727920242630,-824679.42407747,0.000129,2]
[339738312,1727920242644,-15641.89604981,0.000129,2]
[339738313,1727920242656,-1472.58567079,0.000129,2]
[339738314,1727920242667,-1378.83507941,0.000129,2]
[339738315,1727920242678,-999339.17086436,0.000129,2]
[339738316,1727920242687,-868104.65442002,0.000129,2]
[339738318,1727920242696,-2681073.04078804,0.000129,2]
[339738319,1727920242705,-3447469.90008111,0.000129,2]
[339738320,1727920242717,-87691.46503835,0.000129,2]
[339738321,1727920242726,-151.0,0.000129,2]
[339738322,1727920242735,-151.0,0.000129,2]
[339738324,1727920242744,-151.0,0.000129,2]
[339738325,1727920242753,-151.0,0.000129,2]
[339738326,1727920242762,-151.0,0.000129,2]
[339738327,1727920242772,-151.0,0.000129,2]
[339738328,1727920242781,-151.0,0.000129,2]
[339738329,1727920242790,-151.0,0.000129,2]
[339738330,1727920242799,-151.0,0.000129,2]
[339738331,1727920242808,-151.0,0.000129,2]
[339738332,1727920242820,-151.0,0.000129,2]
[339738333,1727920242830,-151.0,0.000129,2]
[339738334,1727920242839,-151.0,0.000129,2]
[339738335,1727920242848,-151.524143,0.000129,2]
[339738336,1727920242857,-151.0,0.000129,2]
[339738337,1727920242866,-168.895081,0.000129,2]
[339738338,1727920242875,-151.0,0.000129,2]
[339738339,1727920242884,-151.0,0.000129,2]
[339738340,1727920242893,-151.0,0.000129,2]
[339738341,1727920242905,-151.0,0.000129,2]
[339738342,1727920242914,-151.0,0.000129,2]
[339738343,1727920242924,-151.404888,0.000129,2]
[339738344,1727920242935,-151.0,0.000129,2]
[339738345,1727920242946,-151.657141,0.000129,2]